Cogmind - Beta 14 @@@ ROGUE MODE // 2024.11.15 @ 15:51:30 Player: WazdakkaGutsmek Result: Escaped! Performance ------------- Evolutions (9) 4500 Regions Visited (26) 5200 Robots Destroyed (90) 450 Value Destroyed (2938) 2938 Prototype IDs (47) 940 Alien Tech Used (2) 400 Bonus (4628) 4628 TOTAL SCORE: 19056 Bonus ------- High Alert Combat Kills 252 Follower Combat Kills 276 Entered Garrisons 200 Aligned with FarCom 300 Met Data Miner 300 Met Zhirov 300 Win 3000 Cogmind --------- Core Integrity 1311/1600 Matter 212/300 Energy 8/100 System Corruption 2% Temperature Cool (9) Movement Flying (34) Location To Epsilon Eridani Parts ------- > --- POWER (2) -------- (None) > --- PROPULSION (10) -- Xenon Bombardment Thruster Field Propulsion Array Field Propulsion Array Field Propulsion Array Improved Diametric Drive Improved Diametric Drive > --- UTILITY (11) ----- Advanced Signal Interpreter Improved Targeting Computer Graphene Brace Hacking Suite Hacking Suite System Shield > --- WEAPON (2) ------- Enhanced Nova Cannon > --- INVENTORY (5) ---- Improved Diametric Drive Peak State ------------ > --- POWER ------------ Light Particle Reactor Light Quantum Reactor > --- PROPULSION ------- Xenon Bombardment Thruster Xenon Bombardment Thruster Xenon Bombardment Thruster Field Propulsion Array Field Propulsion Array Field Propulsion Array Improved Diametric Drive > --- UTILITY ---------- Advanced Thermal Generator Advanced Signal Interpreter Improved Targeting Computer Improved Targeting Computer Advanced Reaction Control System Improved Phase Shifter Light Regenerative Plating Graphene Brace Hacking Suite Hacking Suite System Shield > --- WEAPON ----------- Enhanced Nova Cannon Enhanced Nova Cannon > --- INVENTORY -------- Improved Diametric Drive Improved Diametric Drive Enhanced Nova Cannon Smartbomb Launcher [Rating: 153] Favorites ----------- Power Light Deuterium Engine Engine Light Deuterium Engine Power Core Micro Fission Core Reactor Light Quantum Reactor Propulsion VTOL Module Flight Unit VTOL Module Utility Hacking Suite Device Improved Sensor Array Processor Machine Analyzer Hackware Hacking Suite Protection Light Regenerative Plating Weapon Axe Energy Gun EM Pulse Gun Energy Cannon Enhanced Nova Cannon Ballistic Gun High-powered Shotgun Launcher Missile Launcher Special Weapon Plasma Cutter Slashing Weapon Axe Piercing Weapon Spear Build | -11 -10 -10 -10 -9 -8 -8 -8 -7 -7 -7 -7 -6 -6 -6 -6 -5 -5 -5 -5 -4 -4 -4 -4 -3 -2 -1 ------- Run | Yrd Mat Min Exi Min Mat Gar Mat Fac Low Low Dat Pro Fac Low Low Fac Upp Upp Zhi Pro Fac Upp Upp Res Res Acc Slots Evolved 18 | . . . . . 4 . . 2 . . . . 2 . . 2 . . . . 2 . . 2 2 2 Power 1 | . . . . . . . . . . . . . . . . . . . . . . . . . 1 . Propulsion 8 | . . . . . 2 . . . . . . . 1 . . 1 . . . . . . . 2 1 1 Utility 9 | . . . . . 2 . . 2 . . . . 1 . . 1 . . . . 2 . . . . 1 Weapon . | . . . . . . . . . . . . . . . . . . . . . . . . . . . Parts Attached 140 | 2 . . 1 . 13 8 7 8 2 . . 3 9 7 2 13 2 5 2 . 4 2 . 20 10 20 Power 11 | . . . . . 1 2 . . . . . . 1 1 . 2 . . . . . . . 2 1 1 Engine 5 | . . . . . 1 2 . . . . . . 1 . . . . . . . . . . 1 . . Core 3 | . . . . . . . . . . . . . . 1 . 2 . . . . . . . . . . Reactor 3 | . . . . . . . . . . . . . . . . . . . . . . . . 1 1 1 Propulsion 35 | . . . . . 4 1 3 2 1 . . 2 1 2 . 1 . . . . 1 . . 3 6 8 Treads . | . . . . . . . . . . . . . . . . . . . . . . . . . . . Leg . | . . . . . . . . . . . . . . . . . . . . . . . . . . . Wheel . | . . . . . . . . . . . . . . . . . . . . . . . . . . . Hover . | . . . . . . . . . . . . . . . . . . . . . . . . . . . Flight 35 | . . . . . 4 1 3 2 1 . . 2 1 2 . 1 . . . . 1 . . 3 6 8 Utility 39 | . . . . . 4 . 2 2 . . . 1 3 1 2 6 . . 1 . 2 1 . 7 . 7 Device 21 | . . . . . 1 . 2 1 . . . . 1 1 1 4 . . 1 . 1 . . 5 . 3 Storage . | . . . . . . . . . . . . . . . . . . . . . . . . . . . Processor 7 | . . . . . 2 . . . . . . . 1 . . 1 . . . . . . . 1 . 2 Hackware 6 | . . . . . . . . 1 . . . 1 . . . . . . . . 1 1 . . . 2 Protection 5 | . . . . . 1 . . . . . . . 1 . 1 1 . . . . . . . 1 . . Artifact . | . . . . . . . . . . . . . . . . . . . . . . . . . . . Weapon 55 | 2 . . 1 . 4 5 2 4 1 . . . 4 3 . 4 2 5 1 . 1 1 . 8 3 4 Energy Gun 3 | 1 . . . . 1 . . . . . . . 1 . . . . . . . . . . . . . Energy Cannon 8 | . . . . . . 2 . . . . . . . . . . . . . . . . . 1 2 3 Ballistic Gun 6 | 1 . . . . . . 1 1 . . . . . . . . . . . . . . . 3 . . Ballistic Cannon . | . . . . . . . . . . . . . . . . . . . . . . . . . . . Launcher 18 | . . . . . . 2 . . 1 . . . . 2 . 2 1 3 . . . 1 . 4 1 1 Special Weapon 3 | . . . 1 . . . . 2 . . . . . . . . . . . . . . . . . . Impact Weapon . | . . . . . . . . . . . . . . . . . . . . . . . . . . . Slashing Weapon 15 | . . . . . 3 1 1 1 . . . . 1 1 . 2 1 2 1 . 1 . . . . . Piercing Weapon 2 | . . . . . . . . . . . . . 2 . . . . . . . . . . . . . Special Melee Weapon . | . . . . . . . . . . . . . . . . . . . . . . . . . . . Unidentified Prototypes 5 | . . . . . 1 . . . . . . . . . . . . . 2 . . . . 1 . 1 Parts Lost 40 | . 1 . . . . . 1 2 . . . 2 . 4 . 3 . 1 . 5 . 5 . 3 1 12 Power 4 | . . . . . . . . . . . . 1 . 1 . . . . . . . . . 1 . 1 Propulsion 15 | . . . . . . . . 1 . . . 1 . 3 . 3 . . . 1 . 1 . 1 1 3 Utility 14 | . . . . . . . 1 . . . . . . . . . . 1 . 3 . 2 . 1 . 6 Weapon 7 | . 1 . . . . . . 1 . . . . . . . . . . . 1 . 2 . . . 2 Highest Loss Streak 10 | . 1 . . . . . 1 2 . . . 2 . 2 . 2 . 1 . 5 . 4 . 2 1 10 To Critical Strikes . | . . . . . . . . . . . . . . . . . . . . . . . . . . . Average Slot Usage (%) 65 | . 24 14 23 14 49 97 99 97 99 92 76 76 78 72 66 69 69 58 41 29 21 20 15 35 52 77 Engine 2 | . . . . . 4 8 9 7 7 7 7 . 5 2 . . . . . . . . . . . . Flight 19 | . . . . . 19 36 35 29 29 27 23 28 27 25 26 16 11 9 5 2 3 2 . 6 14 26 Device 7 | . . . . . 2 9 8 14 15 12 7 7 6 6 6 11 11 5 . . 4 1 . 7 8 13 Processor 12 | . . . . . 9 18 18 15 15 15 15 15 13 13 13 12 17 17 17 15 10 7 5 4 8 11 Hackware 7 | . . . . . . . . 7 7 7 7 8 13 13 13 11 11 11 11 6 1 7 10 9 8 11 Protection 4 | . . . . . 4 9 9 7 7 7 7 7 3 6 . 3 5 3 . . . . . 3 4 3 Energy Cannon 1 | . . . . . . 7 . . . . . . . . . . . . . . . . . . 3 6 Ballistic Gun 1 | . 14 14 14 14 1 . 9 6 . . . . . . . . . . . . . . . . . . Launcher 1 | . . . . . . 1 . . 7 7 7 7 . . . . . 1 . . . . . . . . Slashing Weapon 2 | . . . . . 5 6 9 7 7 4 . . . 1 . 4 4 3 5 3 1 2 . . . . Peak Build Rating 153 | 2 2 1 4 3 27 36 33 41 40 40 27 30 50 49 50 62 69 69 39 33 27 27 14 69 105 153 Average Rating 42 | 1 1 1 3 2 15 34 29 38 39 36 27 25 36 42 39 49 62 53 32 24 19 18 14 46 88 132 On Entrance 30 | . 2 1 1 4 2 27 33 31 39 40 27 27 30 46 43 41 62 62 39 33 11 27 14 14 65 101 Naked Turns . | . . . . . . . . . . . . . . . . . . . . . . . . . . . Heaviest Build 62 | 3 3 1 2 1 8 21 17 15 18 18 13 13 20 15 10 16 20 14 3 3 5 5 . 24 35 62 Greatest Support 73 | 3 3 3 3 3 19 19 18 20 19 19 13 16 22 24 20 20 19 19 6 6 7 7 3 23 62 73 Greatest Overweight (x) 2 | . . . . . . 1 . . 1 . . 2 1 . . 2 1 1 . . . . . 2 . 1 Average Overweight (x) . | . . . . . . . . . . . . . . . . . . . . . . . . . . . Largest Inventory Capacity 5 | 5 5 5 5 5 5 5 5 5 5 5 5 5 5 5 5 5 5 5 5 5 5 5 5 5 5 5 Average Capacity 5 | 5 5 5 5 5 5 5 5 5 5 5 5 5 5 5 5 5 5 5 5 5 5 5 5 5 5 5 Most Carried 5 | . 2 3 5 4 5 5 5 5 5 5 4 4 5 5 5 5 5 5 5 5 5 5 4 4 5 5 Average Carried 4 | . 1 2 3 3 4 4 4 4 5 4 4 4 4 4 2 2 4 4 4 5 5 4 4 2 3 4 Final Capacity 5 | 5 5 5 5 5 5 5 5 5 5 5 5 5 5 5 5 5 5 5 5 5 5 5 5 5 5 5 Final Carried 5 | . 2 3 5 3 5 4 5 5 5 4 4 4 5 4 2 5 4 4 5 5 5 4 4 4 4 1 Class Distribution -------------------- 21% | Scavenger-Scout 17% | Hacker-Mutant 15% | Scout 14% | Mutant 9% | Hacker-Scout 5% | Hacker-Sprinter 4% | Scavenger-Mutant 3% | Scavenger-Ninja Dominant Class ---------------- Mutant | -10/Materials Mutant | -10/Mines Mutant | -10/Exiles Mutant | -9/Mines Sprinter | -8/Materials Scout | -8/Garrison Scout | -8/Materials Ninja | -7/Factory Scavenger-Ninja | -7/Lower Caves Scavenger-Ninja | -7/Lower Caves Scavenger-Scout | -7/Data Miner Scavenger-Mutant | -6/Proximity Caves Scavenger-Scout | -6/Factory Scavenger-Scout | -6/Lower Caves Scavenger-Scout | -6/Lower Caves Hacker-Scout | -5/Factory Hacker-Scout | -5/Upper Caves Hacker-Scout | -5/Upper Caves Hacker-Mutant | -5/Zhirov Hacker-Mutant | -4/Proximity Caves Mutant | -4/Factory Mutant | -4/Upper Caves Hacker-Mutant | -4/Upper Caves Hacker-Mutant | -3/Research Hacker-Mutant | -2/Research Hacker-Sprinter | -1/Access Resources | -11 -10 -10 -10 -9 -8 -8 -8 -7 -7 -7 -7 -6 -6 -6 -6 -5 -5 -5 -5 -4 -4 -4 -4 -3 -2 -1 ----------- Run | Yrd Mat Min Exi Min Mat Gar Mat Fac Low Low Dat Pro Fac Low Low Fac Upp Upp Zhi Pro Fac Upp Upp Res Res Acc Matter Collected 2516 | 110 123 1 . . 103 9 312 64 43 57 . 52 150 130 . 60 243 49 . 127 . 48 . 550 . 285 Remotely . | . . . . . . . . . . . . . . . . . . . . . . . . . . . Salvage Created 3033 | . 159 . . . 85 29 338 110 253 . . 77 546 17 . 336 94 163 . . . 39 . 325 186 276 Parts 169 | . 9 . . . 7 17 31 4 4 . . 6 25 1 . 17 1 4 . . . 5 . 12 7 19 Haulers Intercepted 5 | . . . . . . . 3 1 . . . . . . . 1 . . . . . . . . . . Recyclers Shooed 1 | . 1 . . . . . . . . . . . . . . . . . . . . . . . . . Parts Field Recycled . | . . . . . . . . . . . . . . . . . . . . . . . . . . . Retrieved Matter . | . . . . . . . . . . . . . . . . . . . . . . . . . . . Parts Self-Destructed 11 | . . . . . . . . . 1 . . 1 . 1 . . . 4 . . . 4 . . . . Prevented 5 | . . . . . . . . . . . . . . . . . . . . . . 5 . . . . Kills | -11 -10 -10 -10 -9 -8 -8 -8 -7 -7 -7 -7 -6 -6 -6 -6 -5 -5 -5 -5 -4 -4 -4 -4 -3 -2 -1 ------- Run | Yrd Mat Min Exi Min Mat Gar Mat Fac Low Low Dat Pro Fac Low Low Fac Upp Upp Zhi Pro Fac Upp Upp Res Res Acc Combat Hostiles Destroyed 62 | . 3 . . . . 10 3 1 3 . . 6 1 1 . 2 3 9 . . . 3 . 6 5 6 Melee 6 | . . . . . . . 3 1 . . . . 1 . . . 1 . . . . . . . . . Guns 4 | . 3 . . . . . . . . . . . . . . . . . . . . . . 1 . . Cannons 2 | . . . . . . . . . . . . . . . . . . . . . . . . . 1 1 AOE 49 | . . . . . . 10 . . 3 . . 6 . 1 . 2 2 9 . . . 3 . 5 3 5 Classes Destroyed 15 | . 2 . . . 2 1 3 . . . . . 3 . . . . 2 . . . . . 1 . 1 Worker 4 | . . . . . 1 . 1 . . . . . . . . . . . . . . . . 2 . . Builder 5 | . . . . . . . 1 . . . . . 1 . . 3 . . . . . . . . . . Tunneler 1 | . . . . . . . . . . . . . . . . . . . . . . . . . . 1 Hauler 5 | . . . . . . . 3 1 . . . . . . . 1 . . . . . . . . . . Recycler 5 | . . . . . . . . . . . . . 3 . . 1 . . . . . . . . . 1 Mechanic 1 | . . . . . . . . . . . . . 1 . . . . . . . . . . . . . Operator 2 | . 1 . . . . . 1 . . . . . . . . . . . . . . . . . . . Watcher 5 | . . . . . 2 . 1 . . . . . 2 . . . . . . . . . . . . . Swarmer 39 | . . . . . . 10 1 . 3 . . 6 . 1 . . . 6 . . . 3 . . 4 5 Grunt 9 | . 3 . . . . . . . . . . . . . . . 3 1 . . . . . 1 1 . Brawler 1 | . . . . . . . . . . . . . . . . . . 1 . . . . . . . . Duelist 1 | . . . . . . . . . . . . . . . . . . 1 . . . . . . . . Sentry 3 | . . . . . . . 2 1 . . . . . . . . . . . . . . . . . . Hunter 5 | . . . . . . . . . . . . . . . . . . . . . . . . 5 . . Programmer 4 | . . . . . . . . . . . . . 1 . . 2 . . . . . . . . . 1 Best Kill Streak 6 | . 2 . . . 1 6 2 1 3 . . 6 4 1 . 3 3 5 . . . 3 . 6 4 5 Combat Bots Only 6 | . 2 . . . . 6 1 1 3 . . 6 1 1 . 2 3 5 . . . 3 . 5 4 5 Max Kills in Single Turn 6 | . 1 . . . 1 6 1 1 3 . . 2 1 1 . 1 1 4 . . . 2 . 2 3 3 Gunslinging . | . . . . . . . . . . . . . . . . . . . . . . . . . . . Exploded 6 | . . . . . . 6 . . 3 . . 2 . 1 . 1 1 4 . . . 2 . 2 3 3 Melee 1 | . . . . . . . 1 1 . . . . 1 . . . 1 . . . . . . . . . Uniques/NPCs Destroyed . | . . . . . . . . . . . . . . . . . . . . . . . . . . . Combat | -11 -10 -10 -10 -9 -8 -8 -8 -7 -7 -7 -7 -6 -6 -6 -6 -5 -5 -5 -5 -4 -4 -4 -4 -3 -2 -1 -------- Run | Yrd Mat Min Exi Min Mat Gar Mat Fac Low Low Dat Pro Fac Low Low Fac Upp Upp Zhi Pro Fac Upp Upp Res Res Acc Hostile Shots Fired 685 | . 15 . . . . 10 15 60 3 5 . 15 13 17 2 37 3 22 . 29 . 116 . 120 64 139 Missed 327 | . 3 . . . . 3 4 21 1 1 . 8 9 5 . 17 2 10 . 14 . 47 . 60 40 82 Damage Taken 7087 | . 153 3 . . . 78 165 215 26 54 . 101 108 215 10 428 17 187 . 352 . 1320 . 1299 567 1789 Core 2675 | . 64 . . . . 22 15 71 14 27 . 32 80 16 . 86 . 46 . 301 . 1082 . 423 107 289 Absorbed by Shields 5 | . . . . . . . . . . . . . . . . . . . . . . . . . 5 . Redirected to Shielding 15 | . . . . . . . 10 2 3 . . . . . . . . . . . . . . . . . Regen/Repaired (Parts) 584 | . . . . . . . 18 . . . . . 14 29 1 41 82 40 . . . . . 184 56 119 Core Remaining (%) 72 | 100 . . . 74 . . 93 . . . . 79 . . 88 . . . . 56 . . 5 59 92 81 Volleys Fired 133 | . 19 . . 5 . 9 . . 1 8 . 5 1 4 . 3 3 8 . . . 4 . 41 8 14 Largest 2 | . 2 . . 1 . 1 . . 1 1 . 1 1 1 . 2 1 1 . . . 1 . 1 1 2 Hottest 240 | . 60 . . 20 . 36 . . 36 36 . 36 50 43 . 78 46 46 . . . 43 . 113 120 240 Shots Fired 160 | . 36 . . 5 . 9 1 . 1 8 . 5 1 4 . 6 3 8 . . . 4 . 41 8 20 Gun 70 | . 36 . . 5 . . 1 . . . . . 1 . . . . . . . . . . 27 . . Cannon 31 | . . . . . . . . . . . . . . . . . . . . . . . . 6 7 18 Launcher 59 | . . . . . . 9 . . 1 8 . 5 . 4 . 6 3 8 . . . 4 . 8 1 2 Special . | . . . . . . . . . . . . . . . . . . . . . . . . . . . Kinetic 52 | . 19 . . 5 . . 1 . . . . . . . . . . . . . . . . 27 . . Thermal 31 | . . . . . . . . . . . . . . . . . . . . . . . . 6 7 18 Explosive 59 | . . . . . . 9 . . 1 8 . 5 . 4 . 6 3 8 . . . 4 . 8 1 2 Electromagnetic 18 | . 17 . . . . . . . . . . . 1 . . . . . . . . . . . . . Robot Hit Streak 7 | . 7 . . 7 . 3 . . . 2 . 3 . 1 . . . . . . . . . 5 2 5 Robot Miss Streak 6 | . 2 . . 2 . 3 . . . 4 . 1 2 2 . . . . . . . 6 . 3 1 2 Penetration Max 3 | . . . . . . . . . . . . . . . . . . . . . . . . 3 . . Secondary Targets . | . . . . . . . . . . . . . . . . . . . . . . . . . . . Shots Hit Robots 148 | . 25 . . 3 4 1 20 12 5 2 . 3 23 2 . 11 1 3 . . 4 1 . 18 2 8 Core Hits 144 | . 8 1 . . 2 10 10 3 6 3 . 8 7 2 . 10 10 20 . . . 4 . 27 4 9 Critical Kills 2 | . . . . . . . . . . . . . . . . . . . . . . . . 1 1 . Critical Parts Destroyed 6 | . . . . . . . . . . . . . . . . . . . . . . . . 6 . . Critical Strikes 15 | . . . . . . . 3 . . . . . 2 . . 1 . . . . 1 . . 7 1 . Meltdown 1 | . . . . . . . . . . . . . . . . . . . . . . . . . 1 . Destroy 7 | . . . . . . . . . . . . . . . . . . . . . . . . 7 . . Sever 5 | . . . . . . . 3 . . . . . . . . 1 . . . . 1 . . . . . Impale 2 | . . . . . . . . . . . . . 2 . . . . . . . . . . . . . Melee Attacks 177 | . . . . . 15 6 39 16 5 . . . 52 2 . 18 1 11 . 2 8 2 . . . . Impact . | . . . . . . . . . . . . . . . . . . . . . . . . . . . Slashing 127 | . . . . . 15 6 39 16 5 . . . 2 2 . 18 1 11 . 2 8 2 . . . . Piercing 50 | . . . . . . . . . . . . . 50 . . . . . . . . . . . . . Sneak Attacks 25 | . . . . . 1 . 5 3 . . . . 10 . . 5 . . . . 1 . . . . . Combat Hostiles 1 | . . . . . . . . 1 . . . . . . . . . . . . . . . . . . Follow-up Attacks . | . . . . . . . . . . . . . . . . . . . . . . . . . . . Damage Inflicted 11977 | . 295 6 . 28 188 659 1018 645 594 572 . 460 1084 209 . 925 677 1427 . . 216 343 . 1274 260 1097 Guns 518 | . 295 . . 28 . . . . . . . . . . . . . . . . . . . 195 . . Cannons 380 | . . . . . . . . . . . . . . . . . . . . . . . . 37 80 263 Explosions 6652 | . . . . . . 659 . . 173 572 . 460 . 175 . 305 637 1312 . . . 303 . 1042 180 834 Melee 4421 | . . . . . 188 . 1018 645 421 . . . 1084 34 . 620 40 115 . . 216 40 . . . . Ramming 6 | . . 6 . . . . . . . . . . . . . . . . . . . . . . . . Kinetic 315 | . 92 . . 28 . . . . . . . . . . . . . . . . . . . 195 . . Thermal 380 | . . . . . . . . . . . . . . . . . . . . . . . . 37 80 263 Explosive 6652 | . . . . . . 659 . . 173 572 . 460 . 175 . 305 637 1312 . . . 303 . 1042 180 834 Electromagnetic 203 | . 203 . . . . . . . . . . . . . . . . . . . . . . . . . Impact . | . . . . . . . . . . . . . . . . . . . . . . . . . . . Slashing 3428 | . . . . . 188 . 1018 645 421 . . . 91 34 . 620 40 115 . . 216 40 . . . . Piercing 993 | . . . . . . . . . . . . . 993 . . . . . . . . . . . . . Highest Corruption 8 | . . . . . . . 2 . . . . . . . . 2 2 2 2 2 . . . 8 . 2 Average Corruption 3 | . . . . . . . 2 . . . . . . . . 1 2 2 2 2 . . . 6 . 2 Corruption Purged . | . . . . . . . . . . . . . . . . . . . . . . . . . . . Corruption Blocked . | . . . . . . . . . . . . . . . . . . . . . . . . . . . Effects 42 | . . . . . . . 9 . . . . . . . . . 3 5 2 1 . . . 22 . . Message Errors 10 | . . . . . . . 1 . . . . . . . . . 1 1 . . . . . 7 . . Matter Fused 9 | . . . . . . . 2 . . . . . . . . . 1 2 1 . . . . 3 . . Heat Flow Errors 6 | . . . . . . . 1 . . . . . . . . . . . . . . . . 5 . . Energy Discharges 6 | . . . . . . . . . . . . . . . . . . 1 . 1 . . . 4 . . Data Loss (minor) 5 | . . . . . . . 2 . . . . . . . . . . . . . . . . 3 . . Data Loss (major) 2 | . . . . . . . . . . . . . . . . . 1 1 . . . . . . . . Misfires 1 | . . . . . . . 1 . . . . . . . . . . . . . . . . . . . Alerts 3 | . . . . . . . 2 . . . . . . . . . . . 1 . . . . . . . Overload Shots . | . . . . . . . . . . . . . . . . . . . . . . . . . . . Overflow Damage 836 | . . . . . 48 34 . 65 184 35 . 21 209 2 . 86 2 63 . . . . . . 36 51 Projectiles 21 | . . . . . . . . . . . . . . . . . . . . . . . . . . 21 Explosions 181 | . . . . . . 34 . . . 35 . 21 . 2 . . 2 21 . . . . . . 36 30 Melee 634 | . . . . . 48 . . 65 184 . . . 209 . . 86 . 42 . . . . . . . . Knockbacks . | . . . . . . . . . . . . . . . . . . . . . . . . . . . Impact . | . . . . . . . . . . . . . . . . . . . . . . . . . . . Kinetic . | . . . . . . . . . . . . . . . . . . . . . . . . . . . Secondary . | . . . . . . . . . . . . . . . . . . . . . . . . . . . Self-Inflicted Damage 192 | . . 3 . . . 25 . . . 54 . . . . . . . . . . . . . . 37 73 Shots 4 | . . . . . . 1 . . . 1 . . . . . . . . . . . . . . 1 1 Rammed 1 | . . 1 . . . . . . . . . . . . . . . . . . . . . . . . Targets Rammed 1 | . . 1 . . . . . . . . . . . . . . . . . . . . . . . . Kicked . | . . . . . . . . . . . . . . . . . . . . . . . . . . . Crushed . | . . . . . . . . . . . . . . . . . . . . . . . . . . . Highest Temperature 593 | . 35 . . . . . 205 . . 3 . . 15 10 . 3 . . . . . . . 233 246 593 Average Temperature 99 | . 11 . . . . . 89 . . 3 . . 6 5 . 3 . . . . . . . 103 101 132 Received Heat Transfer 390 | . 87 . . . . . 36 . . . . 9 . 9 . 45 . 18 . 27 . 69 . 45 18 27 Effects 11 | . . . . . . . . . . . . . . . . . . . . . . . . 2 . 9 Shutdowns 2 | . . . . . . . . . . . . . . . . . . . . . . . . . . 2 Energy Bleed 2 | . . . . . . . . . . . . . . . . . . . . . . . . . . 2 Interference 2 | . . . . . . . . . . . . . . . . . . . . . . . . 2 . . Matter Decay 2 | . . . . . . . . . . . . . . . . . . . . . . . . . . 2 Short Circuit 2 | . . . . . . . . . . . . . . . . . . . . . . . . . . 2 Damage (minor) 1 | . . . . . . . . . . . . . . . . . . . . . . . . . . 1 Siege Activations . | . . . . . . . . . . . . . . . . . . . . . . . . . . . Robots Corrupted . | . . . . . . . . . . . . . . . . . . . . . . . . . . . Combat Hostiles . | . . . . . . . . . . . . . . . . . . . . . . . . . . . Parts Fried 2 | . 2 . . . . . . . . . . . . . . . . . . . . . . . . . Impact Corruptions . | . . . . . . . . . . . . . . . . . . . . . . . . . . . Robots Melted 1 | . . . . . . . . . . . . . . . . . . . . . . . . . 1 . Combat Hostiles 1 | . . . . . . . . . . . . . . . . . . . . . . . . . 1 . Parts Melted 1 | . . . . . . . . . . . . . . . . . . . . . . . . . 1 . Heat Transferred 333 | . . . . . . . . . . . . . . . . . . . . . . . . 37 74 222 Parts Sabotaged . | . . . . . . . . . . . . . . . . . . . . . . . . . . . Parts Stolen 8 | . . . . . . . . . . 4 . . . . 1 . . 3 . . . . . . . . Parts Stripped . | . . . . . . . . . . . . . . . . . . . . . . . . . . . Power Chain Reactions . | . . . . . . . . . . . . . . . . . . . . . . . . . . . Alert | -11 -10 -10 -10 -9 -8 -8 -8 -7 -7 -7 -7 -6 -6 -6 -6 -5 -5 -5 -5 -4 -4 -4 -4 -3 -2 -1 ------- Run | Yrd Mat Min Exi Min Mat Gar Mat Fac Low Low Dat Pro Fac Low Low Fac Upp Upp Zhi Pro Fac Upp Upp Res Res Acc Peak Influence 861 | . 124 48 . . 72 371 430 237 . . . . 395 . . 508 . . . . 197 . . 861 797 664 Initial 483 | . . 48 . . . 13 180 128 . . . . 2 . . 204 . . . . 159 . . 132 483 472 Average 248 | . 64 48 . . 32 183 287 180 . . . . 68 . . 327 . . . . 167 . . 444 572 502 Maximum Alert Level 3 | . . . . . . 1 2 1 . . . . 1 . . 2 . . . . . . . 3 3 2 Low Security (%) 50 | 100 100 100 . 100 100 82 6 71 . . . . 85 . . . . . . . 100 . . 26 . . Level 1 23 | . . . . . . 17 74 28 . . . . 14 . . 66 . . . . . . . 22 . 2 Level 2 22 | . . . . . . . 19 . . . . . . . . 33 . . . . . . . 32 84 97 Level 3 3 | . . . . . . . . . . . . . . . . . . . . . . . . 18 15 . Level 4 . | . . . . . . . . . . . . . . . . . . . . . . . . . . . Level 5 . | . . . . . . . . . . . . . . . . . . . . . . . . . . . High Security . | . . . . . . . . . . . . . . . . . . . . . . . . . . . Max Security . | . . . . . . . . . . . . . . . . . . . . . . . . . . . Squads Dispatched 25 | . 1 . . . 1 . . . . . . . 5 . . 2 . 1 . . 1 . . 5 1 8 Investigation 7 | . . . . . . . . . . . . . 2 . . . . . . . . . . 3 . 2 Extermination 6 | . . . . . . . . . . . . . 3 . . . . . . . . . . 2 . 1 Reinforcement 11 | . 1 . . . 1 . . . . . . . . . . 2 . . . . 1 . . . 1 5 Assault 1 | . . . . . . . . . . . . . . . . . . 1 . . . . . . . . Garrison . | . . . . . . . . . . . . . . . . . . . . . . . . . . . Intercept . | . . . . . . . . . . . . . . . . . . . . . . . . . . . Searches Triggered 1 | . . . . . . . . . . . . . . . . . . . . . . . . . . 1 Data Miner Redirects 2 | . . . . . . . . . . . . . . . . . . . . . . . . 1 . 1 Construction Impeded . | . . . . . . . . . . . . . . . . . . . . . . . . . . . Haulers Reinforced 1 | . . . . . . . . . . . . . . . . . . . . . 1 . . . . . Active Scanning Responses . | . . . . . . . . . . . . . . . . . . . . . . . . . . . Cargo Convoy Interrupts . | . . . . . . . . . . . . . . . . . . . . . . . . . . . Stealth | -11 -10 -10 -10 -9 -8 -8 -8 -7 -7 -7 -7 -6 -6 -6 -6 -5 -5 -5 -5 -4 -4 -4 -4 -3 -2 -1 --------- Run | Yrd Mat Min Exi Min Mat Gar Mat Fac Low Low Dat Pro Fac Low Low Fac Upp Upp Zhi Pro Fac Upp Upp Res Res Acc Distress Signals 13 | . . . . . 1 . 1 . . . . . 1 . . 1 . . . . 1 . . 4 1 3 Communications Jammed . | . . . . . . . . . . . . . . . . . . . . . . . . . . . Distress Signals . | . . . . . . . . . . . . . . . . . . . . . . . . . . . Times Spotted 246 | . 7 . . . 6 3 9 3 3 5 . 11 8 14 1 13 3 16 . 3 4 21 . 48 16 52 Peak Tracking Total 29 | . 2 . . . 2 3 3 3 3 4 . 7 3 4 1 7 4 10 . 3 4 12 . 8 10 29 Tactical Retreats 50 | . 1 . . . . . 1 . . . . 3 2 6 . 4 1 5 . 1 1 5 . 12 2 6 Traps | -11 -10 -10 -10 -9 -8 -8 -8 -7 -7 -7 -7 -6 -6 -6 -6 -5 -5 -5 -5 -4 -4 -4 -4 -3 -2 -1 ------- Run | Yrd Mat Min Exi Min Mat Gar Mat Fac Low Low Dat Pro Fac Low Low Fac Upp Upp Zhi Pro Fac Upp Upp Res Res Acc Traps Triggered 15 | . . . . . . 9 1 . . . . . . . . . . . . . . . . 2 1 2 Indirectly . | . . . . . . . . . . . . . . . . . . . . . . . . . . . Trap Hack Attempts . | . . . . . . . . . . . . . . . . . . . . . . . . . . . Triggered . | . . . . . . . . . . . . . . . . . . . . . . . . . . . Disarmed . | . . . . . . . . . . . . . . . . . . . . . . . . . . . Reprogrammed . | . . . . . . . . . . . . . . . . . . . . . . . . . . . Reused . | . . . . . . . . . . . . . . . . . . . . . . . . . . . Traps Extracted . | . . . . . . . . . . . . . . . . . . . . . . . . . . . Installed . | . . . . . . . . . . . . . . . . . . . . . . . . . . . Triggered 4 | . . . . . . . . . . . . . . 2 . . . 1 . . . 1 . . . . Machines | -11 -10 -10 -10 -9 -8 -8 -8 -7 -7 -7 -7 -6 -6 -6 -6 -5 -5 -5 -5 -4 -4 -4 -4 -3 -2 -1 ---------- Run | Yrd Mat Min Exi Min Mat Gar Mat Fac Low Low Dat Pro Fac Low Low Fac Upp Upp Zhi Pro Fac Upp Upp Res Res Acc Machines Disabled 12 | . 1 . . . . 2 1 . . . . . . . . 2 . 4 . . . 1 . . . 1 Max in Single Turn 2 | . 1 . . . . 1 1 . . . . . . . . 1 . 2 . . . 1 . . . 1 Garrison Access 4 | . . . . . . . . 1 . . . . 1 . . 1 . . . . . . . 1 . . Garrison Relay 1 | . . . . . . 1 . . . . . . . . . . . . . . . . . . . . Energy Cycler 1 | . . . . . . . . . . . . . . . . . . . . . . . . . . 1 Machines Repaired . | . . . . . . . . . . . . . . . . . . . . . . . . . . . Machines Dismantled . | . . . . . . . . . . . . . . . . . . . . . . . . . . . Machines Sabotaged . | . . . . . . . . . . . . . . . . . . . . . . . . . . . Overloaded Fab Kills . | . . . . . . . . . . . . . . . . . . . . . . . . . . . Hacking | -11 -10 -10 -10 -9 -8 -8 -8 -7 -7 -7 -7 -6 -6 -6 -6 -5 -5 -5 -5 -4 -4 -4 -4 -3 -2 -1 --------- Run | Yrd Mat Min Exi Min Mat Gar Mat Fac Low Low Dat Pro Fac Low Low Fac Upp Upp Zhi Pro Fac Upp Upp Res Res Acc Machines Accessed 68 | . 3 . 1 . 5 3 6 6 . . 4 1 8 1 . 5 . . 9 . 1 . . 7 1 7 Terminals 39 | . 3 . . . 4 3 5 3 . . . 1 5 . . 3 . . . . 1 . . 3 1 7 Fabricators 8 | . . . . . . . . 2 . . . . 2 . . 1 . . . . . . . 3 . . Repair Stations 1 | . . . . . . . 1 . . . . . . . . . . . . . . . . . . . Recycling Units . | . . . . . . . . . . . . . . . . . . . . . . . . . . . Scanalyzers . | . . . . . . . . . . . . . . . . . . . . . . . . . . . Garrison Access 5 | . . . . . 1 . . 1 . . . . 1 . . 1 . . . . . . . 1 . . Total Hacks 196 | . 8 . 1 . 16 5 15 9 . . 30 1 16 1 . 12 . . 48 . 1 . . 12 2 19 Successful 124 | . 3 . 1 . 5 2 6 3 . . 30 1 9 1 . 5 . . 48 . 1 . . 4 . 5 Failed 72 | . 5 . . . 11 3 9 6 . . . . 7 . . 7 . . . . . . . 8 2 14 Catastrophic 12 | . 1 . . . . . 3 2 . . . . 2 . . . . . . . . . . 3 . 1 Database Lockouts . | . . . . . . . . . . . . . . . . . . . . . . . . . . . Manual 36 | . 3 . 1 . 13 . 9 1 . . . . 6 . . . . 1 . . 1 . . . . 1 Terminals 87 | . 8 . . . 15 5 13 3 . . . 1 10 . . 6 . . . . 1 . . 4 2 19 Fabricators 19 | . . . . . . . . 2 . . . . 5 . . 5 . . . . . . . 7 . . Repair Stations 2 | . . . . . . . 2 . . . . . . . . . . . . . . . . . . . Recycling Units . | . . . . . . . . . . . . . . . . . . . . . . . . . . . Scanalyzers . | . . . . . . . . . . . . . . . . . . . . . . . . . . . Garrison Access 8 | . . . . . 1 . . 4 . . . . 1 . . 1 . . . . . . . 1 . . Terminal Hacks 104 | . 3 . 1 . 2 2 3 2 . . 30 1 3 1 . 3 . . 48 . . . . . . 5 Record 50 | . . . . . . . . . . . 11 1 . . . 2 . . 36 . . . . . . . Part Schematic 15 | . . . . . . . . . . . 11 . . . . . . . 4 . . . . . . . Robot Schematic 5 | . . . . . . . . . . . 5 . . . . . . . . . . . . . . . Robot Analysis 5 | . 1 . . . . . . . . . . . . . . . . . 4 . . . . . . . Prototype ID Bank 8 | . 1 . . . . . . . . . 3 . . . . . . . 4 . . . . . . . Open Door 1 | . . . . . . . . . . . . . . 1 . . . . . . . . . . . . Level Access Points 2 | . . . . . . . . 1 . . . . . . . . . . . . . . . . . 1 Branch Access Points 5 | . . . . . . . 1 1 . . . . 1 . . 1 . . . . . . . . . 1 Emergency Access Points 2 | . . . . . . 1 . . . . . . 1 . . . . . . . . . . . . . Machine Index 1 | . . . . . . . . . . . . . . . . . . . . . . . . . . 1 Terminal Index 1 | . . . . . . . . . . . . . . . . . . . . . . . . . . 1 Alert Level 2 | . 1 . . . . . 1 . . . . . . . . . . . . . . . . . . . Unreport Threat 3 | . . . . . 2 . . . . . . . . . . . . . . . . . . . . 1 Patrol Status 1 | . . . . . . . 1 . . . . . . . . . . . . . . . . . . . Zone Layout 1 | . . . . . . . . . . . . . 1 . . . . . . . . . . . . . Patrol Navigation 1 | . . . . . . 1 . . . . . . . . . . . . . . . . . . . . Derelict Proto ID Bank 1 | . . . 1 . . . . . . . . . . . . . . . . . . . . . . . Fabricator Hacks 8 | . . . . . . . . . . . . . 4 . . 1 . . . . . . . 3 . . Load Schematic 5 | . . . . . . . . . . . . . 2 . . 1 . . . . . . . 2 . . Build 3 | . . . . . . . . . . . . . 2 . . . . . . . . . . 1 . . Repair Station Hacks 2 | . . . . . . . 2 . . . . . . . . . . . . . . . . . . . Scan Component 1 | . . . . . . . 1 . . . . . . . . . . . . . . . . . . . Repair 1 | . . . . . . . 1 . . . . . . . . . . . . . . . . . . . Recycling Unit Hacks . | . . . . . . . . . . . . . . . . . . . . . . . . . . . Scanalyzer . | . . . . . . . . . . . . . . . . . . . . . . . . . . . Garrison Access Hacks 5 | . . . . . 1 . . 1 . . . . 1 . . 1 . . . . . . . 1 . . Unlock Access 1 | . . . . . 1 . . . . . . . . . . . . . . . . . . . . . Seal Access 4 | . . . . . . . . 1 . . . . 1 . . 1 . . . . . . . 1 . . Unauthorized Hacks 5 | . . . . . 2 . 1 . . . . . 1 . . . . . . . 1 . . . . . Terminals 5 | . . . . . 2 . 1 . . . . . 1 . . . . . . . 1 . . . . . Assimilate 3 | . . . . . 1 . . . . . . . 1 . . . . . . . 1 . . . . . Botnet 2 | . . . . . 1 . 1 . . . . . . . . . . . . . . . . . . . Fabricators . | . . . . . . . . . . . . . . . . . . . . . . . . . . . Repair Stations . | . . . . . . . . . . . . . . . . . . . . . . . . . . . Recycling Units . | . . . . . . . . . . . . . . . . . . . . . . . . . . . Scanalyzers . | . . . . . . . . . . . . . . . . . . . . . . . . . . . Garrison Access . | . . . . . . . . . . . . . . . . . . . . . . . . . . . Data Cores Recovered . | . . . . . . . . . . . . . . . . . . . . . . . . . . . Used . | . . . . . . . . . . . . . . . . . . . . . . . . . . . Hacking Detections 45 | . 3 . . . 4 2 5 6 . . . . 6 . . 4 . . . . 1 . . 6 1 7 Full Trace Events 7 | . . . . . . . . . . . . . 2 . . . . . . . . . . 3 . 2 Feedback Events . | . . . . . . . . . . . . . . . . . . . . . . . . . . . Feedback Blocked 1 | . . . . . . . . . . . . . . . . . . . . . . . . 1 . . Robot Schematics Acquired 5 | . . . . . . . . . . . 5 . . . . . . . . . . . . . . . Robots Built . | . . . . . . . . . . . . . . . . . . . . . . . . . . . Authchips . | . . . . . . . . . . . . . . . . . . . . . . . . . . . Time . | . . . . . . . . . . . . . . . . . . . . . . . . . . . Total Robot Build Rating . | . . . . . . . . . . . . . . . . . . . . . . . . . . . Part Schematics Acquired 15 | . . . . . . . . . . . 11 . . . . . . . 4 . . . . . . . Parts Built 3 | . . . . . . . . . . . . . 2 . . . . . . . . . . 1 . . Authchips . | . . . . . . . . . . . . . . . . . . . . . . . . . . . Time 406 | . . . . . . . . . . . . . 219 . . . . . . . . . . 187 . . Total Part Build Rating 18 | . . . . . . . . . . . . . 11 . . . . . . . . . . 7 . . Parts Repaired 1 | . . . . . . . 1 . . . . . . . . . . . . . . . . . . . Time 38 | . . . . . . . 38 . . . . . . . . . . . . . . . . . . . Parts Recycled . | . . . . . . . . . . . . . . . . . . . . . . . . . . . Recycled Matter . | . . . . . . . . . . . . . . . . . . . . . . . . . . . Retrieved Matter . | . . . . . . . . . . . . . . . . . . . . . . . . . . . Retrieved Components . | . . . . . . . . . . . . . . . . . . . . . . . . . . . Parts Scanalyzed . | . . . . . . . . . . . . . . . . . . . . . . . . . . . Part Schematics Acquired . | . . . . . . . . . . . . . . . . . . . . . . . . . . . Parts Damaged . | . . . . . . . . . . . . . . . . . . . . . . . . . . . Bothacking | -11 -10 -10 -10 -9 -8 -8 -8 -7 -7 -7 -7 -6 -6 -6 -6 -5 -5 -5 -5 -4 -4 -4 -4 -3 -2 -1 ------------ Run | Yrd Mat Min Exi Min Mat Gar Mat Fac Low Low Dat Pro Fac Low Low Fac Upp Upp Zhi Pro Fac Upp Upp Res Res Acc Used RIF Installer . | . . . . . . . . . . . . . . . . . . . . . . . . . . . Robots Hacked . | . . . . . . . . . . . . . . . . . . . . . . . . . . . Non-combat . | . . . . . . . . . . . . . . . . . . . . . . . . . . . Combat . | . . . . . . . . . . . . . . . . . . . . . . . . . . . Robot Hacks Applied . | . . . . . . . . . . . . . . . . . . . . . . . . . . . Relay Couplers Released 4 | . . . . . . 4 . . . . . . . . . . . . . . . . . . . . Machine Destruction 4 | . . . . . . 4 . . . . . . . . . . . . . . . . . . . . Fabnet Peak Effective % . | . . . . . . . . . . . . . . . . . . . . . . . . . . . Robots Rewired . | . . . . . . . . . . . . . . . . . . . . . . . . . . . Allies Hacked . | . . . . . . . . . . . . . . . . . . . . . . . . . . . Hacks Repelled . | . . . . . . . . . . . . . . . . . . . . . . . . . . . Allies | -11 -10 -10 -10 -9 -8 -8 -8 -7 -7 -7 -7 -6 -6 -6 -6 -5 -5 -5 -5 -4 -4 -4 -4 -3 -2 -1 -------- Run | Yrd Mat Min Exi Min Mat Gar Mat Fac Low Low Dat Pro Fac Low Low Fac Upp Upp Zhi Pro Fac Upp Upp Res Res Acc Total Allies 2 | . . . . . . . . . . . . . 1 . . . . . . . 1 . . . . . Largest Group 1 | . . . . . . . . . . . . . 1 . . . . . . . 1 1 . . . . Highest-Rated Group 26 | . . . . . . . . . . . . . 10 . . . . . . . 26 26 . . . . Highest-Rated Ally 26 | . . . . . . . . . . . . . 10 . . . . . . . 26 26 . . . . Total Orders 2 | . . . . . . . . . . . . . 2 . . . . . . . . . . . . . RETURN 2 | . . . . . . . . . . . . . 2 . . . . . . . . . . . . . Ally Attacks 35 | . . . . . . . . . . . . . 5 . 1 . . . . . . . . 29 . . Total Damage 721 | . . . . . . . . . . . . . 62 . 25 . . . . . . . . 634 . . Kills 5 | . . . . . . . . . . . . . 1 . . . . . . . . . . 4 . . Allies Corrupted 1 | . . . . . . . . . . . . . . . . . . . . . . . . 1 . . Allies Melted . | . . . . . . . . . . . . . . . . . . . . . . . . . . . Intel | -11 -10 -10 -10 -9 -8 -8 -8 -7 -7 -7 -7 -6 -6 -6 -6 -5 -5 -5 -5 -4 -4 -4 -4 -3 -2 -1 ------- Run | Yrd Mat Min Exi Min Mat Gar Mat Fac Low Low Dat Pro Fac Low Low Fac Upp Upp Zhi Pro Fac Upp Upp Res Res Acc Robot Analysis Total 5 | . 1 . . . . . . . . . . . . . . . . . 4 . . . . . . . Derelict Logs Recovered 8 | . . . . . . . . . 2 1 . 2 . 1 . . . 1 . 1 . . . . . . Drone Launches 7 | . . . . . . . . . . . . . 4 . 1 . . . . . . . . 2 . . Drone Recoveries 4 | . . . . . . . . . . . . . 4 . . . . . . . . . . . . . Exploration | -11 -10 -10 -10 -9 -8 -8 -8 -7 -7 -7 -7 -6 -6 -6 -6 -5 -5 -5 -5 -4 -4 -4 -4 -3 -2 -1 ------------- Run | Yrd Mat Min Exi Min Mat Gar Mat Fac Low Low Dat Pro Fac Low Low Fac Upp Upp Zhi Pro Fac Upp Upp Res Res Acc Turns Passed 6995 | 18 185 81 142 24 286 406 631 173 142 122 24 486 1060 181 13 281 351 273 70 99 249 285 8 746 176 483 Spaces Moved 11618 | 30 236 147 262 28 592 600 665 388 443 358 82 577 1210 479 11 589 347 523 154 214 491 592 17 1219 331 1033 Core 1694 | 30 236 147 262 28 73 . . . . . . 146 52 . . . . . . 81 130 317 17 175 . . Treads . | . . . . . . . . . . . . . . . . . . . . . . . . . . . Legs . | . . . . . . . . . . . . . . . . . . . . . . . . . . . Wheels . | . . . . . . . . . . . . . . . . . . . . . . . . . . . Hover . | . . . . . . . . . . . . . . . . . . . . . . . . . . . Flight 9924 | . . . . . 519 600 665 388 443 358 82 431 1158 479 11 589 347 523 154 133 361 275 . 1044 331 1033 Fastest Speed 17 | 50 50 50 50 50 26 26 26 26 27 27 29 26 24 24 27 27 37 37 40 40 40 40 50 37 22 17 Average Speed 35 | 50 50 50 50 50 32 31 26 26 27 27 29 58 28 28 27 31 37 41 40 43 42 45 50 43 33 22 Slowest Speed 200 | 50 50 50 50 50 50 107 27 30 110 29 29 150 106 35 27 200 117 120 40 50 50 50 50 200 37 98 Overloaded Moves . | . . . . . . . . . . . . . . . . . . . . . . . . . . . Propulsion Burnouts . | . . . . . . . . . . . . . . . . . . . . . . . . . . . Robots Hopped 31 | . . . . . . 2 . 5 . . . . 1 . . 3 . . . . . . . 5 2 13 Cave-ins Triggered . | . . . . . . . . . . . . . . . . . . . . . . . . . . . Teleports 1 | . . . . . . . . . . . . . . . . . . . . . . . . 1 . . Exploration Rate (%) 41 | 4 35 42 61 9 42 62 45 14 71 62 70 81 28 58 5 22 53 72 63 49 12 87 4 28 13 37 Regions Visited 26 Branch Regions 15 Pre-discovered Areas 7 | . . . . . . . . . 1 1 1 . . 1 . . . . 3 . . . . . . . Known Exits Taken 20 | . . . . . 1 . 1 1 1 1 1 1 1 1 1 1 1 1 1 1 1 1 1 1 1 . Unknown Exits Taken 5 | 1 1 1 1 1 . . . . . . . . . . . . . . . . . . . . . . Scrap Searched 17 | . . 1 . . . . . . 2 4 . 1 . 2 . . 1 2 . 2 . 1 1 . . . Spaces Dug 68 | . . . . . 10 . 12 2 . . . . 23 . . 4 . . . . 4 . . 4 4 5 Terrain Destroyed 619 | . . . . . 10 30 12 2 14 42 . 24 23 67 . 28 49 105 . . 4 35 . 83 19 72 Melee 55 | . . . . . 10 . 12 2 . . . . 23 . . 4 . . . . 4 . . . . . Projectile 21 | . . . . . . . . . . . . . . . . . . . . . . . . 5 5 11 AOE 543 | . . . . . . 30 . . 14 42 . 24 . 67 . 24 49 105 . . . 35 . 78 14 61 Terrain Rammed . | . . . . . . . . . . . . . . . . . . . . . . . . . . . Walls Destroyed . | . . . . . . . . . . . . . . . . . . . . . . . . . . . Machines Disabled . | . . . . . . . . . . . . . . . . . . . . . . . . . . . Actions | -11 -10 -10 -10 -9 -8 -8 -8 -7 -7 -7 -7 -6 -6 -6 -6 -5 -5 -5 -5 -4 -4 -4 -4 -3 -2 -1 --------- Run | Yrd Mat Min Exi Min Mat Gar Mat Fac Low Low Dat Pro Fac Low Low Fac Upp Upp Zhi Pro Fac Upp Upp Res Res Acc Total 13989 | 31 270 153 269 34 654 794 1049 423 450 371 81 719 1848 517 20 661 564 560 162 216 515 599 16 1381 385 1247 Wait 1675 | . 14 5 . . 27 5 335 12 . 6 . 135 566 18 7 32 209 7 1 1 13 . . 96 15 171 Move 11533 | 29 235 146 261 27 592 596 664 378 442 357 81 576 1207 478 10 582 346 522 153 213 490 591 16 1208 326 1007 Hop 28 | . . . . . . 1 . 4 . . . . 1 . . 3 . . . . . . . 5 2 12 Pick Up 23 | . 2 1 3 . 3 . 1 1 . . . . 2 1 . 2 . 1 2 . . . . . 1 3 Fast Attach 85 | 2 . . . . 12 1 3 3 1 . . 3 7 4 . 7 . . 2 . 4 1 . 13 7 15 Attach 42 | . . . 1 . . 5 1 1 . . . . 2 3 2 3 2 5 1 . . 1 . 8 2 5 Detach 35 | . . . 1 . . 4 1 . . . . . 3 3 1 2 2 5 . . . . . 8 3 2 Swap 15 | . . . . . 1 2 3 4 1 . . . . . . 3 . . . . . . . . 1 . Drop 51 | . . . 1 2 4 3 2 4 . . . . 7 4 . 6 1 1 3 . . . . 2 3 8 Fire 133 | . 19 . . 5 . 9 . . 1 8 . 5 1 4 . 3 3 8 . . . 4 . 41 8 14 Melee 177 | . . . . . 15 6 39 16 5 . . . 52 2 . 18 1 11 . 2 8 2 . . . . Ram 1 | . . 1 . . . . . . . . . . . . . . . . . . . . . . . . Kick . | . . . . . . . . . . . . . . . . . . . . . . . . . . . Crush . | . . . . . . . . . . . . . . . . . . . . . . . . . . . Escape Stasis 189 | . . . . . . 162 . . . . . . . . . . . . . . . . . . 17 10 Rewire . | . . . . . . . . . . . . . . . . . . . . . . . . . . . Trap . | . . . . . . . . . . . . . . . . . . . . . . . . . . . Miscellaneous 2 | . . . 2 . . . . . . . . . . . . . . . . . . . . . . . Route ------- -11/Scrapyard -10/Materials -10/Mines -10/Exiles -9/Mines -8/Materials -8/Garrison (discovered 3 exits: *Mat x3) -8/Materials -7/Factory (discovered 8 exits: Fac x4 / Sto x2 / *Low x2) -7/Lower Caves -7/Lower Caves -7/Data Miner -6/Proximity Caves -6/Factory (discovered 3 exits: *Fac / *Low x2) -6/Lower Caves -6/Lower Caves -5/Factory (discovered 4 exits: *Upp x2 / *Ext x2) -5/Upper Caves -5/Upper Caves (discovered 2 exits: *Fac / *Zhi) -5/Zhirov -4/Proximity Caves -4/Factory -4/Upper Caves -4/Upper Caves -3/Research -2/Research -1/Access (discovered 2 exits: *Sur / Com) To Epsilon Eridani History --------- Turn | Location | Event 3 | -11/Scrapyard | Discovered new exit (range 14) 19 | -11/Scrapyard | Entered Materials 197 | -10/Materials | Discovered new exit (range 9) 204 | -10/Materials | Entered Mines 256 | -10/Mines | Received a Rocket Launcher from a helpful Derelict 282 | -10/Mines | Deemed a non-threat by the Exiles lab entrance 282 | -10/Mines | Discovered new exit (range 5) 285 | -10/Mines | Entered Exiles 299 | -10/Exiles | Met 8R-AWN 306 | -10/Exiles | Build established: Mutant 307 | -10/Exiles | Met EX-HEX 322 | -10/Exiles | Met EX-BIN 357 | -10/Exiles | Aligned with FarCom system 357 | -10/Exiles | Given EX-Vault access code 372 | -10/Exiles | Opened EX-Vault 375 | -10/Exiles | Found Potential Leg 376 | -10/Exiles | Found Potential Leg 379 | -10/Exiles | Found Latent Energy Streamer 391 | -10/Exiles | Warned to stay clear of 0b10 Research branches 397 | -10/Exiles | Exiles lab attacked by MAIN.C 422 | -10/Exiles | Discovered new exit (range 12) 427 | -10/Exiles | Stole two prototypes: Potential Leg, Latent Energy Streamer 427 | -10/Exiles | Entered Mines 433 | -9/Mines | Discovered new exit (range 9) 451 | -9/Mines | Entered Materials 451 | -8/Materials | Evolved 4 slots: Propulsion x2, Utility x2 737 | -8/Materials | Identified exit to Garrison 737 | -8/Materials | Entered Garrison 800 | -8/Garrison | Triggered checkpoint 865 | -8/Garrison | Discovered new exit (range 10) 867 | -8/Garrison | Identified exit to Materials 915 | -8/Garrison | Triggered checkpoint 929 | -8/Garrison | Discovered exit to Materials (range 9) 957 | -8/Garrison | Build established: Scout 1027 | -8/Garrison | Discovered exit to Materials (range 15) 1071 | -8/Garrison | Triggered checkpoint 1143 | -8/Garrison | Entered Materials 1357 | -8/Materials | Repaired Cesium-ion Thruster 1757 | -8/Materials | Discovered new exit (range 16) 1774 | -8/Materials | Identified exit to Factory 1774 | -8/Materials | Entered Factory 1774 | -7/Factory | Evolved 2 slots: Utility x2 1776 | -7/Factory | FarCom data flow suspended 1787 | -7/Factory | Identified exit to Factory 1878 | -7/Factory | Identified exit to Storage 1878 | -7/Factory | Identified exit to Lower Caves 1947 | -7/Factory | Entered Lower Caves 2004 | -7/Lower Caves | Learned 8 Factory zone layouts 2082 | -7/Lower Caves | Discovered new exit (range 11) 2084 | -7/Lower Caves | Identified exit to Lower Caves 2086 | -7/Lower Caves | Learned location of Zion (-6) 2089 | -7/Lower Caves | Entered another Lower Caves area 2121 | -7/Lower Caves | Encountered a Warlord checkpoint 2165 | -7/Lower Caves | Spotted PB-RWB(f) 2169 | -7/Lower Caves | Encountered a Master Thief 2172 | -7/Lower Caves | Spotted G8-VU8(f) 2172 | -7/Lower Caves | Spotted 68-5UM(f) 2172 | -7/Lower Caves | Spotted 3D-1QX(f) 2173 | -7/Lower Caves | Encountered a Master Thief 2173 | -7/Lower Caves | Encountered a Master Thief 2173 | -7/Lower Caves | Encountered a Master Thief 2174 | -7/Lower Caves | Latent Energy Streamer stolen by Master Thief 2175 | -7/Lower Caves | Transmission Jammer stolen by Master Thief 2176 | -7/Lower Caves | Great Axe stolen by Master Thief 2177 | -7/Lower Caves | Xenon Bombardment Thruster stolen by Master Thief 2209 | -7/Lower Caves | Discovered new exit (range 9) 2211 | -7/Lower Caves | Identified exit to Data Miner 2211 | -7/Lower Caves | Entered Data Miner 2211 | -7/Data Miner | Discovered new exit (range 6) 2217 | -7/Data Miner | Met Data Miner 2225 | -7/Data Miner | Learned location of Section 7 (-2) 2225 | -7/Data Miner | Acquired the access code to Warlord's prototype stash 2228 | -7/Data Miner | Received God Mode back door access code from Data Miner 2234 | -7/Data Miner | Identified exit to Proximity Caves 2235 | -7/Data Miner | Entered Proximity Caves 2244 | -6/Proximity Caves | Learned Factory security intel 2703 | -6/Proximity Caves | Learned 4 Factory zone layouts 2720 | -6/Proximity Caves | Discovered exit to Factory (range 5) 2721 | -6/Proximity Caves | Entered Factory 2721 | -6/Factory | Evolved 2 slots: Propulsion x1, Utility x1 3005 | -6/Factory | Fabricated Combat Drone Bay? 3129 | -6/Factory | Build established: Scavenger-Scout 3137 | -6/Factory | Spotted B-75 Beast 3210 | -6/Factory | Fabricated Lgt. Regenerative Plating? 3731 | -6/Factory | Discovered new exit (range 14) 3734 | -6/Factory | Identified exit to Factory 3745 | -6/Factory | Identified exit to Lower Caves 3781 | -6/Factory | Entered Lower Caves 3864 | -6/Lower Caves | Encountered a Warlord checkpoint 3959 | -6/Lower Caves | Discovered new exit (range 10) 3962 | -6/Lower Caves | Identified exit to Lower Caves 3962 | -6/Lower Caves | Entered another Lower Caves area 3962 | -6/Lower Caves | Spotted NR-CGU(f) 3964 | -6/Lower Caves | Encountered a Master Thief 3965 | -6/Lower Caves | Combat Drone Bay stolen by Master Thief 3973 | -6/Lower Caves | Discovered exit to Factory (range 9) 3975 | -6/Lower Caves | Entered Factory 3975 | -5/Factory | Evolved 2 slots: Propulsion x1, Utility x1 3984 | -5/Factory | Identified exit to Upper Caves 3984 | -5/Factory | Identified exit to Extension 4256 | -5/Factory | Entered Upper Caves 4408 | -5/Upper Caves | Build established: Hacker-Scout 4542 | -5/Upper Caves | Encountered a Warlord checkpoint 4603 | -5/Upper Caves | Discovered new exit (range 9) 4607 | -5/Upper Caves | Identified exit to Upper Caves 4607 | -5/Upper Caves | Entered another Upper Caves area 4616 | -5/Upper Caves | Discovered new exit (range 13) 4619 | -5/Upper Caves | Identified exit to Factory 4681 | -5/Upper Caves | Attracted the attention of an 0b10 outpost 4785 | -5/Upper Caves | Spotted M6-RC0(f) 4785 | -5/Upper Caves | Spotted 6J-OR4(f) 4785 | -5/Upper Caves | Spotted JU-LGS(f) 4791 | -5/Upper Caves | Encountered a Master Thief 4791 | -5/Upper Caves | Encountered a Master Thief 4795 | -5/Upper Caves | Nuclear Pulse Array stolen by Master Thief 4796 | -5/Upper Caves | Adv. Sensor Array stolen by Master Thief 4808 | -5/Upper Caves | Encountered a Master Thief 4810 | -5/Upper Caves | Mic. Fission Core stolen by Master Thief 4825 | -5/Upper Caves | Discovered new exit (range 13) 4828 | -5/Upper Caves | Learned 4 Factory zone layouts 4830 | -5/Upper Caves | Identified exit to Zhirov 4880 | -5/Upper Caves | Entered Zhirov 4883 | -5/Zhirov | Discovered new exit (range 4) 4891 | -5/Zhirov | Met Zhirov 4899 | -5/Zhirov | Learned location of Quarantine (-2) 4899 | -5/Zhirov | Learned location of Testing (-3) 4899 | -5/Zhirov | Learned location of Command (-1) 4907 | -5/Zhirov | Zhirov requested help retrieving the SGEMP Prototype 4920 | -5/Zhirov | Found Alien Artifact 4920 | -5/Zhirov | Identified Integrated Reactor 4920 | -5/Zhirov | Installed Integrated Reactor, increased core energy generation (+10) 4934 | -5/Zhirov | Found Alien Artifact 4950 | -5/Zhirov | Identified exit to Proximity Caves 4950 | -5/Zhirov | Entered Proximity Caves 4977 | -4/Proximity Caves | Attracted the attention of an 0b10 checkpoint 5007 | -4/Proximity Caves | Spotted B-86 Titan 5015 | -4/Proximity Caves | Spotter reported a threat 5049 | -4/Proximity Caves | Entered Factory 5049 | -4/Factory | Evolved 2 slots: Utility x2 5055 | -4/Factory | Lost 5 parts (1n3u1w) 5291 | -4/Factory | Discovered new exit (range 10) 5295 | -4/Factory | Identified exit to Upper Caves 5298 | -4/Factory | Entered Upper Caves 5298 | -4/Upper Caves | Accompanied by 1 ally 5307 | -4/Upper Caves | Build established: Mutant 5374 | -4/Upper Caves | Spotted B-86 Titan 5384 | -4/Upper Caves | Attracted the attention of an 0b10 checkpoint 5452 | -4/Upper Caves | Lost 4 parts (1n2u1w) 5490 | -4/Upper Caves | Core integrity fell below 50% 5536 | -4/Upper Caves | Attracted the attention of an 0b10 base 5551 | -4/Upper Caves | Core integrity fell below 20% 5579 | -4/Upper Caves | Discovered new exit (range 7) 5582 | -4/Upper Caves | Identified exit to Upper Caves 5583 | -4/Upper Caves | Entered another Upper Caves area 5590 | -4/Upper Caves | Discovered new exit (range 3) 5591 | -4/Upper Caves | Identified exit to Research 5591 | -4/Upper Caves | Entered Research 5591 | -3/Research | Evolved 2 slots: Propulsion x2 5712 | -3/Research | Identified Transdimensional Reconstructor 5712 | -3/Research | Warped through subspace 5768 | -3/Research | Build established: Hacker-Mutant 5772 | -3/Research | Incoming investigation squad redirected 5941 | -3/Research | Fabricated Assault Drone Bay (x1) 6326 | -3/Research | Discovered new exit (range 13) 6336 | -3/Research | Identified exit to Research 6337 | -3/Research | Entered another Research area 6337 | -2/Research | Evolved 2 slots: Power x1, Propulsion x1 6417 | -2/Research | Spotted B-90 Cyclops 6468 | -2/Research | Spotted B-90 Cyclops 6506 | -2/Research | Discovered new exit (range 15) 6513 | -2/Research | Identified exit to Access 6513 | -2/Research | Entered Access 6513 | -1/Access | Evolved 2 slots: Propulsion x1, Utility x1 6549 | -1/Access | Identified exit to Command 6693 | -1/Access | Spotted B-99 Colossus 6806 | -1/Access | Search patrols dispatched 6857 | -1/Access | Spotted B-99 Colossus 6877 | -1/Access | Found Fusion Bomb Launcher 6903 | -1/Access | Build established: Hacker-Sprinter 6908 | -1/Access | Energy Cycler disabled 6957 | -1/Access | Identified exit to Surface 6973 | -1/Access | Incoming investigation squad redirected 6996 | *** | Escaped! Last Messages --------------- redirecting investigation. 06976_ Adv. Targeting Computer destroyed. 06976_ System corrupted by crushing effect (+2). 06976_ Knocked back. 06976_ U-05 Engineer destroyed. 06976_ Knocked back. 06977_ U-05 Engineer destroyed. 06977_ C-57 Dissector knocked back. 06978_ Knocked back. 06978_ Adv. Thermal Generator destroyed. 06982_ W-44 Eye sends out distress signal. 06985_ Connecting with Terminal... 06985_ ALERT: Suspicious activity at Terminal A013. Dispatching Investigation squad. 06987_ O-32 Director: "IFF HANDSHAKE FAILED. SECURING TERMINAL." 06991_ ALERT: Hostiles spotted, dispatching reinforcements to Terminal A007. 06995_ The Access Shell folds into the floor. [Achievement: True Flier] Map ----- +----------------------------------------------------+ | ?????????????????????????????????????????????????? | | ?????????????????????????????????????????????????? | | ?????????????????????????????????????????????????? | | ?????????????????????????????????????????????????? | | ?????????????????????????????????????????????????? | | ?????????????????????????????????????????????????? | | ?????????????????????????????????????????????????? | | ?????????????????????????????????????????????????? | | ?????????????????????????????????????????????????? | | ?????????????????????????????????????????????????? | | ######???????????????????????????????????????????? | | #???????????????????????????????????????????? | | #???????????????????????????????????????????? | | #??#######??????????????????????????????????? | | #?? #??????????????????????????????????? | | #?? ???????????????????????????????????? | | " #?? ???????????????????????????????????? | | #"" ????????????????????????????????????? | | #"T ? #??????????????????????????????????? | | #"" ? #??????????????????????????????????? | | #"" ??????#""""""""""#??????????????????? | | # ???????# #??????????????????? | | # ?????????# #??????????????????? | | #######/######?????# #??????????????????? | | #?????# "" #??????????????????? | | #?????# "@ #??????????????????? | | +########## #?????# #??????????????????? | | ??????????# #?????# #??????????????????? | | ??????????# #?????# #??????????????????? | | ??????????# #????## ##?????????????????? | | ??????????# #????# #?????????????????? | | ??????????# #????##"" ##?????????????????? | | ??????????# #?????#"" #??????????????????? | | ??????????# #?????#"" #??????????????????? | | ??????????# #?????#T #??????????????????? | | ??????????# #?????#"" #??????????????????? | | ??????????# #?????#"" #??????????????????? | | ??????????# #######"" ####???????????????? | | ??????????# ???????????? | | ??????????# ??????????? | | ??????????####+#######################???????????? | | ????????????? ?????????????????????????????????? | | ????????????? ?????????????????????????????????? | | ???????????? ????????????????????????????????? | | ????????????" ????????????????????????????????? | | ???????????" #???????????????????????????????? | | ??????????? #???????????????????????????????? | | ?????????? #???????????????????????????????? | | ?????????? #???????????????????????????????? | | ?????????? #???????????????????????????????? | +----------------------------------------------------+ Best States ------------- Heat Dissipation 52 Energy Generation 53 Energy Capacity 270 Matter Stores 300 Matter Capacity 300 Sight Range 22 Robot Scan Range 18 Terrain Scan Density 10 ECM Strength 1 Armor Coverage 150 Utility Shielding 33 Melee Speed Boost 20 Phase Shifting 10 Evasion (%) 85 Targeting Accuracy 14 Offensive Hacking 20 Defensive Hacking 12 Item Schematics ----------------- Combat Drone Bay | -7/Data Miner | Free Lgt. Regenerative Plating | -7/Data Miner | Free Cld. Aerolev Unit | -7/Data Miner | Free Exp. Power Shielding | -7/Data Miner | Free Antimatter Cannon | -7/Data Miner | Free Field Propulsion Drive | -7/Data Miner | Free Imp. Recalibrator | -7/Data Miner | Free Wave Gun | -7/Data Miner | Free Enh. Gauss Cannon | -7/Data Miner | Free Centrium Wheel | -7/Data Miner | Free Field Propulsion Array | -7/Data Miner | Free Assault Drone Bay | -5/Zhirov | Free Exp. Heat Sink | -5/Zhirov | Free Exp. Optical Array | -5/Zhirov | Free Imp. Arc Thrower | -5/Zhirov | Free Robot Schematics ------------------ P-60 Hacker | -7/Data Miner | Free B-48 Gladiator | -7/Data Miner | Free E-15 Imp | -7/Data Miner | Free O-24 Administrator | -7/Data Miner | Free B-60 Warrior | -7/Data Miner | Free Fabricated ------------ Combat Drone Bay | x1 | -6/Factory Lgt. Regenerative Plating | x1 | -6/Factory Assault Drone Bay | x1 | -3/Research Alien Tech Used ----------------- Integrated Reactor Transdimensional Reconstructor Achievements -------------- Armchair Analyst The Science Guy True Flier Challenges ------------ None Game ------ Seed HoverSpectralBooster Manual? 0 Play Time 02:23:16 Cumulative 100.8 hours Start 2024.11.15 @ 13:05:24 End 2024.11.15 @ 15:51:30 Sessions 1 Manual Loads 0 Difficulty Rogue Special Mode None Game No. 82 Rogue 64 Adventurer 16 Explorer 2 Win Type 0 Total 5 Types 4/0/1/0/0/0/0/0/0 Lore% 23 Gallery% 58 Achievement% 54 Wizard Run 0 Options --------- Layout 2 ASCII 0 Keyboard 0 Movement Numpad Keybinds 1 Fullscreen 2 Font 24/Terminus Map View 50x44 Zoom Use 0% Tactical HUD 1 Map Filters NONE Filters NONE Steam 1 RUN: f75cf9e4-6d34-4ea9-9065-da07d743c184